bitfinex/quotes_BTCUSD_20250602
["timestamp","ask_amount","ask_price","bid_price","bid_amount"]
[1748826388766,0.97407805,105540.0,105530.0,0.02905173]
[1748826389243,0.97407805,105540.0,105530.0,0.01133405]
[1748826389465,0.97407805,105540.0,105530.0,0.02018856]
[1748826389755,0.97407805,105540.0,105530.0,0.02904855]
[1748826389973,0.97407805,105540.0,105530.0,0.00247941]
[1748826390191,0.97407805,105540.0,105530.0,0.02019268]
[1748826390409,1.00252905,105540.0,105530.0,0.00247941]
[1748826390596,1.00252905,105540.0,105530.0,0.02019318]
[1748826390843,1.00252905,105540.0,105530.0,0.00247941]
[1748826391059,1.00252905,105540.0,105530.0,0.02019319]
[1748826391308,1.00252905,105540.0,105530.0,0.00247941]
[1748826391731,1.00252905,105540.0,105530.0,0.0113363]
[1748826391945,1.00252905,105540.0,105530.0,0.00247941]
[1748826392357,0.97407805,105540.0,105530.0,0.00247941]
[1748826393395,0.97407805,105540.0,105530.0,0.02019232]
[1748826393599,0.97407805,105540.0,105530.0,0.02904877]
[1748826393806,0.97407805,105540.0,105530.0,0.01133586]
[1748826394024,0.97407805,105540.0,105530.0,0.02904778]
[1748826394452,0.97407805,105540.0,105530.0,0.02019166]
[1748826394638,0.97407805,105540.0,105530.0,0.02019168]
[1748826394878,0.97407805,105540.0,105530.0,0.02904561]
[1748826395279,0.97407805,105540.0,105530.0,0.02905183]
[1748826395729,0.97407805,105540.0,105530.0,0.02019168]
[1748826396187,0.97407805,105540.0,105530.0,0.02020166]
[1748826396364,0.97407805,105540.0,105530.0,0.02020175]
[1748826396565,0.97407805,105540.0,105530.0,0.02020031]
[1748826396797,0.97407805,105540.0,105530.0,0.00247941]
[1748826397438,0.46435505,105540.0,105530.0,0.22042571]
[1748826397650,0.34014588,105540.0,105530.0,0.23814373]
[1748826397869,0.00014588,105540.0,105530.0,0.37334945]
[1748826398108,0.00014588,105540.0,105530.0,0.37334611]
[1748826398329,0.00014588,105540.0,105530.0,0.36448712]
[1748826398544,0.00014588,105540.0,105530.0,0.36448697]
[1748826398758,0.00014588,105540.0,105530.0,0.34678001]
[1748826398967,0.00014588,105540.0,105530.0,0.3644863]
[1748826399412,0.00014588,105540.0,105530.0,0.36448657]
[1748826399630,0.00014588,105540.0,105530.0,0.34678001]
[1748826399850,0.00014588,105540.0,105530.0,0.35041516]
[1748826400274,0.00014588,105540.0,105530.0,0.36812011]
[1748826400479,0.00014588,105540.0,105530.0,0.36811981]
[1748826400691,0.00014588,105540.0,105530.0,0.37697213]
[1748826400900,0.00014588,105540.0,105530.0,0.37697063]
[1748826401337,0.00014588,105540.0,105530.0,0.37696837]
[1748826401750,0.00014588,105540.0,105530.0,0.35041366]
[1748826401969,0.00014588,105540.0,105530.0,0.376968]
[1748826402451,0.00014588,105540.0,105530.0,0.35926486]
[1748826402669,0.00014588,105540.0,105530.0,0.37696732]
[1748826402878,0.00014588,105540.0,105530.0,0.37696579]
[1748826403086,0.00014588,105540.0,105530.0,0.35041366]
[1748826403313,0.00014588,105540.0,105530.0,0.36811458]
[1748826403525,0.00014588,105540.0,105530.0,0.35926318]
[1748826403773,0.00014588,105540.0,105530.0,0.37696228]
[1748826403978,0.00014588,105540.0,105530.0,0.35926319]
[1748826404186,0.00014588,105540.0,105530.0,0.66681765]
[1748826404408,0.00014588,105540.0,105530.0,0.63989366]
[1748826404631,0.00014588,105540.0,105530.0,0.35041366]
[1748826404852,0.00962015,105540.0,105530.0,0.34646077]
[1748826405101,0.0190946,105540.0,105530.0,0.34646108]
[1748826405327,0.0190946,105540.0,105530.0,0.34282799]
[1748826405552,0.0190946,105540.0,105530.0,0.34646297]
[1748826405804,0.00962015,105540.0,105530.0,0.34646777]
[1748826406032,0.00962015,105540.0,105530.0,0.31628001]
[1748826406239,0.0190946,105540.0,105530.0,0.32513353]
[1748826406455,0.0190946,105540.0,105530.0,0.33398699]
[1748826406677,0.01909451,105540.0,105530.0,0.33762081]
[1748826406894,0.01909451,105540.0,105530.0,0.61457353]
[1748826407112,0.01909451,105540.0,105530.0,0.62706019]
[1748826407332,0.01909451,105540.0,105530.0,0.60935366]
[1748826407546,0.00962015,105540.0,105530.0,0.61820596]
[1748826407755,0.00962015,105540.0,105530.0,0.60572001]
[1748826407984,0.00962015,105540.0,105530.0,0.63227694]
[1748826408207,0.00962015,105540.0,105530.0,0.63227681]
[1748826408424,0.00962015,105540.0,105530.0,0.63227691]
[1748826408643,0.00962015,105540.0,105530.0,0.61457236]
[1748826408899,0.00962015,105540.0,105530.0,0.60572001]
[1748826409113,0.00962015,105540.0,105530.0,0.62342495]
[1748826409323,0.00962015,105540.0,105530.0,0.60572001]
[1748826409557,0.00014588,105540.0,105530.0,0.60572001]
[1748826410203,0.00014588,105540.0,105530.0,0.64113145]
[1748826410408,0.00014588,105540.0,105530.0,0.62342573]
[1748826410825,0.00014588,105540.0,105530.0,0.63227766]
[1748826411033,0.00014588,105540.0,105530.0,0.62342573]
[1748826411478,0.00014588,105540.0,105530.0,0.64998153]
[1748826411681,0.00014588,105540.0,105530.0,0.63227766]
[1748826411886,0.00014588,105540.0,105530.0,0.62342573]
[1748826412513,0.00014588,105540.0,105530.0,0.64997803]
[1748826413172,0.00014588,105540.0,105530.0,0.64997814]
[1748826413436,0.00014588,105540.0,105530.0,0.64997805]
[1748826413689,0.00014588,105540.0,105530.0,0.64112687]
[1748826413895,0.00014588,105540.0,105530.0,0.64997783]
[1748826414111,0.00014588,105540.0,105530.0,0.64997808]
[1748826415027,0.00014588,105540.0,105530.0,0.64997717]
[1748826415269,0.02482024,105540.0,105530.0,0.33398573]
[1748826415489,0.05059478,105540.0,105530.0,0.3605378]
[1748826416392,0.05059478,105540.0,105530.0,0.36053985]
[1748826416629,0.0600695,105540.0,105530.0,0.36054737]
[1748826416852,0.05059478,105540.0,105530.0,0.36054371]
[1748826417059,0.05059478,105540.0,105530.0,0.34283839]
[1748826417274,0.05059478,105540.0,105530.0,0.36054371]
[1748826417494,0.24957156,105540.0,105530.0,0.2463615]
[1748826417715,0.24957156,105540.0,105530.0,0.25521933]
[1748826417925,0.24957156,105540.0,105530.0,0.25522017]
[1748826418134,0.24957156,105540.0,105530.0,0.25522032]
[1748826418349,0.24957156,105540.0,105530.0,0.23751104]
[1748826418561,0.24957156,105540.0,105530.0,0.25522077]
[1748826418790,0.24957156,105540.0,105530.0,0.25522221]
[1748826419007,0.24957156,105540.0,105530.0,0.2457466]
[1748826419222,0.24009702,105540.0,105530.0,0.2457466]
[1748826419439,0.24009702,105540.0,105530.0,0.25522239]
[1748826419884,0.58516324,105540.0,105530.0,0.04675511]
[1748826420130,0.58516324,105540.0,105530.0,0.04675551]
[1748826420373,0.58516324,105540.0,105530.0,0.04675552]
[1748826420609,0.58516324,105540.0,105530.0,0.21918057]
[1748826420833,0.58516324,105540.0,105530.0,0.2457508]
[1748826421059,0.58516324,105540.0,105530.0,0.25522637]
[1748826421294,0.00014588,105540.0,105530.0,0.2647016]
[1748826421514,0.00014588,105540.0,105530.0,0.39145409]
[1748826421740,0.00014588,105540.0,105530.0,0.39145298]
[1748826421741,0.00962015,105540.0,105530.0,0.39145298]
[1748826422176,0.00962015,105540.0,105530.0,0.39145387]
[1748826422397,0.01909469,105540.0,105530.0,0.39145387]
[1748826422598,0.0190946,105540.0,105530.0,0.39145569]
[1748826422810,0.0190946,105540.0,105530.0,0.34908582]
[1748826423023,0.0190946,105540.0,105530.0,0.35794247]
[1748826423440,0.0190946,105540.0,105530.0,0.37565574]
[1748826423654,0.00962015,105540.0,105530.0,0.37565574]
[1748826423859,0.00962015,105540.0,105530.0,0.39125574]
[1748826424071,0.01909469,105540.0,105530.0,0.39125574]
[1748826424491,0.00962015,105540.0,105530.0,0.37354413]
[1748826424699,0.02856905,105540.0,105530.0,0.39126075]
[1748826424935,0.01909451,105540.0,105530.0,0.39126664]
[1748826425172,0.02856905,105540.0,105530.0,0.39126669]
[1748826425382,0.01909451,105540.0,105530.0,0.39126669]
[1748826425602,0.02856905,105540.0,105530.0,0.39126973]
[1748826425811,0.02856905,105540.0,105530.0,0.37566973]
[1748826426025,0.02856905,105540.0,105530.0,0.3756758]
[1748826426446,0.02856905,105540.0,105530.0,0.37567581]
[1748826426710,0.01909451,105540.0,105530.0,0.35794914]
[1748826426926,0.02856905,105540.0,105530.0,0.37569183]
[1748826427144,0.02856896,105540.0,105530.0,0.36682316]
[1748826427351,0.02856896,105540.0,105530.0,0.34908582]
[1748826427791,0.02856896,105540.0,105530.0,0.36682318]
[1748826428067,0.02856896,105540.0,105530.0,0.37569185]
[1748826428277,0.02856896,105540.0,105530.0,0.37569184]
[1748826428482,0.02856896,105540.0,105530.0,0.3579545]
[1748826428899,0.02856896,105540.0,105530.0,0.36682281]
[1748826429122,0.02856896,105540.0,105530.0,0.36682279]
[1748826429338,0.02856896,105540.0,105530.0,0.3579545]
[1748826429550,0.02856914,105540.0,105530.0,0.3744545]
[1748826429757,0.02856905,105540.0,105530.0,0.3744545]
[1748826430601,0.02856905,105540.0,105530.0,0.3921904]
[1748826431016,0.02856905,105540.0,105530.0,0.3744545]
[1748826431430,0.02856905,105540.0,105530.0,0.39219039]
[1748826431644,0.02856905,105540.0,105530.0,0.3744545]
[1748826431873,0.01909451,105540.0,105530.0,0.3428545]
[1748826432068,0.02856914,105540.0,105530.0,0.3428545]
[1748826432493,0.00014588,105540.0,105530.0,0.3428545]
[1748826432699,0.00014588,105540.0,105530.0,0.68193112]
[1748826432938,0.00014588,105540.0,105530.0,0.66783588]
[1748826433164,0.00014588,105540.0,105530.0,0.68557213]
[1748826433375,0.00014588,105540.0,105530.0,0.66783588]
[1748826433798,0.00014588,105540.0,105530.0,0.6641945]
[1748826434013,0.00014588,105540.0,105530.0,0.66783596]
[1748826434707,0.00014588,105540.0,105530.0,0.69444284]
[1748826435366,0.00014588,105540.0,105530.0,0.69444368]
[1748826435581,0.00014588,105540.0,105530.0,0.68557444]
[1748826436285,0.00014588,105540.0,105530.0,0.69444368]
[1748826437178,0.00014588,105540.0,105530.0,0.69444498]
[1748826437828,0.00014588,105540.0,105530.0,0.67670622]
[1748826438068,0.00014588,105540.0,105530.0,0.69444585]
[1748826438310,0.00014588,105540.0,105530.0,0.694446]
[1748826438533,0.00014588,105540.0,105530.0,0.373106]
[1748826438771,0.0285695,105540.0,105530.0,0.662506]
[1748826438994,0.04356941,105540.0,105530.0,0.6625066]
[1748826439208,0.04979469,105540.0,105530.0,0.63589656]
[1748826439428,0.05926941,105540.0,105530.0,0.63589656]
[1748826439878,0.05926941,105540.0,105530.0,0.65363777]
[1748826440123,0.05926941,105540.0,105530.0,0.63589656]
[1748826440788,0.03409469,105540.0,105530.0,0.64476716]
[1748826441015,0.0435695,105540.0,105530.0,0.35536716]
[1748826441219,0.0435695,105540.0,105530.0,0.34649656]
[1748826441425,0.0530444,105540.0,105530.0,0.34649656]
[1748826441645,0.0693444,105540.0,105530.0,0.34649656]
[1748826441857,0.0693444,105540.0,105530.0,0.35536723]
[1748826442067,0.0598695,105540.0,105530.0,0.34649656]
[1748826442519,0.0598695,105540.0,105530.0,0.35536726]
[1748826442727,0.05986941,105540.0,105530.0,0.34649704]
[1748826442932,0.07881939,105540.0,105530.0,0.34649722]
[1748826443150,0.07881939,105540.0,105530.0,0.37431869]
[1748826443151,0.0788193,105540.0,105530.0,0.37431869]
[1748826443356,0.06934431,105540.0,105530.0,0.379547]
[1748826443563,0.06934431,105540.0,105530.0,0.36180545]
[1748826443989,0.06934431,105540.0,105530.0,0.37067629]
[1748826444201,0.23989711,105540.0,105530.0,0.02905381]
[1748826444662,0.32857711,105540.0,105530.0,0.03792564]
[1748826444881,0.32857711,105540.0,105530.0,0.02905381]
[1748826445103,0.32857711,105540.0,105530.0,0.23752504]
[1748826445317,0.32857711,105540.0,105530.0,0.26414036]
[1748826445535,0.32857711,105540.0,105530.0,0.25466466]
[1748826445760,0.32857711,105540.0,105530.0,0.26414054]
[1748826445984,0.31910239,105540.0,105530.0,0.26414054]
[1748826446193,0.31910239,105540.0,105530.0,0.23752522]
[1748826446647,0.31910239,105540.0,105530.0,0.26413075]
[1748826446865,0.31910239,105540.0,105530.0,0.24639264]
[1748826447065,0.31910239,105540.0,105530.0,0.23752522]
[1748826447363,0.31910239,105540.0,105530.0,0.26412746]
[1748826447582,0.31910239,105540.0,105530.0,0.26364646]
[1748826447810,0.31910239,105540.0,105530.0,0.23704581]
[1748826448019,0.31910239,105540.0,105530.0,0.25477898]
[1748826448235,0.31910239,105540.0,105530.0,0.2636455]
[1748826448451,0.31910239,105540.0,105530.0,0.24591237]
[1748826448665,0.31910239,105540.0,105530.0,0.27312129]
[1748826448889,0.31906239,105540.0,105530.0,0.28259699]
[1748826449106,0.31906239,105540.0,105530.0,0.26486386]
[1748826449340,0.31906239,105540.0,105530.0,0.27372963]
[1748826449562,0.31906239,105540.0,105530.0,0.25416914]
[1748826449778,0.32412834,105540.0,105530.0,0.05517351]
[1748826449998,0.32412834,105540.0,105530.0,0.05517361]
[1748826449999,0.66412834,105540.0,105530.0,0.05517361]
[1748826450219,0.66412834,105540.0,105530.0,0.05517371]
[1748826450451,0.66412834,105540.0,105530.0,0.0374409]
[1748826450674,0.66412834,105540.0,105530.0,0.05517408]
[1748826450901,0.66412834,105540.0,105530.0,0.05517097]
[1748826451355,0.66412834,105540.0,105530.0,0.25416641]
[1748826451997,0.66412834,105540.0,105530.0,0.25416464]
[1748826452222,0.66412834,105540.0,105530.0,0.05516861]
[1748826453284,0.66412834,105540.0,105530.0,0.05516743]
[1748826453751,0.66412834,105540.0,105530.0,0.05516559]
[1748826453960,0.66412834,105540.0,105530.0,0.05516533]
[1748826454169,0.66412834,105540.0,105530.0,0.05516529]
[1748826454615,0.66412834,105540.0,105530.0,0.05516377]
[1748826455510,0.66412834,105540.0,105530.0,0.0285744]
[1748826455957,0.66412834,105540.0,105530.0,0.03743776]
[1748826456185,0.66412834,105540.0,105530.0,0.05516449]
[1748826456813,0.66412834,105540.0,105530.0,0.0551645]
[1748826457026,0.66412834,105540.0,105530.0,0.05516454]
[1748826457240,0.66412834,105540.0,105530.0,0.05516483]
[1748826457647,0.66412834,105540.0,105530.0,0.0285744]
[1748826457793,0.66412834,105540.0,105530.0,0.05516442]
[1748826458244,0.66412834,105540.0,105530.0,0.05516448]
[1748826458627,0.66412834,105540.0,105530.0,0.0285744]
[1748826458828,0.66412834,105540.0,105530.0,0.05516389]
[1748826460029,0.66412834,105540.0,105530.0,0.05516364]
[1748826460584,0.66412834,105540.0,105530.0,0.05516352]
[1748826461944,0.66412834,105540.0,105530.0,0.03743744]
[1748826462147,0.66412834,105540.0,105530.0,0.05516352]
[1748826462348,0.66412834,105540.0,105530.0,0.0285744]
[1748826463147,1.13470388,105540.0,105530.0,0.0285744]
[1748826463345,1.04934264,105540.0,105530.0,0.0285744]
[1748826463524,1.07779764,105540.0,105530.0,0.0285744]
[1748826465385,1.07779764,105540.0,105530.0,0.0265744]
[1748826465589,0.56866342,105540.0,105530.0,0.22556975]
[1748826465736,0.65277823,105540.0,105530.0,0.22556975]
[1748826465937,0.65277823,105540.0,105530.0,0.21609396]
[1748826466158,0.65277823,105540.0,105530.0,0.22556984]
[1748826466682,0.64330342,105540.0,105530.0,0.04430082]
[1748826467062,0.64330342,105540.0,105530.0,0.0265744]
[1748826467292,0.64330342,105540.0,105530.0,0.04430081]
[1748826467720,0.64330342,105540.0,105530.0,0.05316673]
[1748826467908,0.64330342,105540.0,105530.0,0.05317315]
[1748826468075,0.64330342,105540.0,105530.0,0.0443069]
[1748826468283,0.64330342,105540.0,105530.0,0.05317313]
[1748826468852,0.64330342,105540.0,105530.0,0.05318624]
[1748826469251,0.64330342,105540.0,105530.0,0.03544502]
[1748826469799,0.64330342,105540.0,105530.0,0.0265744]
[1748826470221,0.64330342,105540.0,105530.0,0.04431565]
[1748826470419,0.64330342,105540.0,105530.0,0.05318627]
[1748826470863,0.64330342,105540.0,105530.0,0.0265744]
[1748826471222,0.64330342,105540.0,105530.0,0.03544502]
[1748826471441,0.64330342,105540.0,105530.0,0.0265744]
[1748826471815,0.64330342,105540.0,105530.0,0.05318627]
[1748826472102,0.64330342,105540.0,105530.0,0.04431565]
[1748826472933,0.64330342,105540.0,105530.0,0.0265744]
[1748826474790,0.64330342,105540.0,105530.0,0.04431565]
[1748826474997,0.64330342,105540.0,105530.0,0.0265744]
[1748826475196,0.64330342,105540.0,105530.0,0.04431565]
[1748826475411,0.64330342,105540.0,105530.0,0.0265744]
[1748826476243,0.64330342,105540.0,105530.0,0.04431577]
[1748826476451,0.64330342,105540.0,105530.0,0.03544508]
[1748826476659,0.64330342,105540.0,105530.0,0.0265744]
[1748826477079,0.63823738,105540.0,105530.0,0.25746993]
[1748826477500,0.63823738,105540.0,105530.0,0.293558]
[1748826477704,0.63823738,105540.0,105530.0,0.26694581]
[1748826477901,0.63823738,105540.0,105530.0,0.28468733]
[1748826478109,0.63823738,105540.0,105530.0,0.26694581]
[1748826478333,0.63823738,105540.0,105530.0,0.2935581]
[1748826478544,0.63823738,105540.0,105530.0,0.26694581]
[1748826479420,0.63823738,105540.0,105530.0,0.28468908]
[1748826479621,0.63823738,105540.0,105530.0,0.28469013]
[1748826479836,0.63823738,105540.0,105530.0,0.27581797]
[1748826480156,0.63823738,105540.0,105530.0,0.26694581]
[1748826480587,0.63823738,105540.0,105530.0,0.27581798]
[1748826480804,0.63823738,105540.0,105530.0,0.26694581]
[1748826481007,0.62876257,105540.0,105530.0,0.0265744]
[1748826481230,0.62876257,105540.0,105530.0,0.0354466]
[1748826481460,0.62876257,105540.0,105530.0,0.0265744]
[1748826482069,0.62876257,105540.0,105530.0,0.03544674]
[1748826482241,0.64506257,105540.0,105530.0,0.0265744]
[1748826482465,0.64506257,105540.0,105530.0,0.05319146]
[1748826483104,0.62876257,105540.0,105530.0,0.05319146]
[1748826483309,0.62876257,105540.0,105530.0,0.0443201]
[1748826483963,0.62876257,105540.0,105530.0,0.03544754]
[1748826484170,0.62876257,105540.0,105530.0,0.05319383]
[1748826484988,0.62876257,105540.0,105530.0,0.04432159]
[1748826485193,0.62876257,105540.0,105530.0,0.0265744]
[1748826485570,0.62876257,105540.0,105530.0,0.04432159]
[1748826485773,0.62876257,105540.0,105530.0,0.04432284]
[1748826485973,0.62876257,105540.0,105530.0,0.03544862]
[1748826486180,0.62876257,105540.0,105530.0,0.04432284]
[1748826486390,0.62876257,105540.0,105530.0,0.05319706]
[1748826486945,0.62876257,105540.0,105530.0,0.05319818]
[1748826487272,0.62876257,105540.0,105530.0,0.04432359]
[1748826487475,0.62876257,105540.0,105530.0,0.03544906]
[1748826487680,0.62876257,105540.0,105530.0,0.05319907]
[1748826487922,0.62876257,105540.0,105530.0,0.05319908]
[1748826488486,0.62876257,105540.0,105530.0,0.05319959]
[1748826489203,0.62876257,105540.0,105530.0,0.03544946]
[1748826489406,0.62876257,105540.0,105530.0,0.04432453]
[1748826489697,0.62876257,105540.0,105530.0,0.03544946]
[1748826489896,0.62876257,105540.0,105530.0,0.0265744]
[1748826490737,0.62876257,105540.0,105530.0,0.04432415]
[1748826490957,0.62876257,105540.0,105530.0,0.0265744]
[1748826492147,0.64396257,105540.0,105530.0,0.03544909]
[1748826492513,0.64396257,105540.0,105530.0,0.0265744]
[1748826492720,0.64396257,105540.0,105530.0,0.03544909]
[1748826492928,0.62876257,105540.0,105530.0,0.0265744]
[1748826493706,0.62876257,105540.0,105530.0,0.03545004]
[1748826493918,0.62876257,105540.0,105530.0,0.0265744]
[1748826494770,0.62876257,105540.0,105530.0,0.03545004]
[1748826494972,0.62876257,105540.0,105530.0,0.05320132]
[1748826495189,0.62876257,105540.0,105530.0,0.06775004]
[1748826495600,0.62876257,105540.0,105530.0,0.08550132]
[1748826495806,0.62876257,105540.0,105530.0,0.08552065]
[1748826496007,0.62876257,105540.0,105530.0,0.0588744]
[1748826496412,0.62876257,105540.0,105530.0,0.08552065]
[1748826496820,0.62876257,105540.0,105530.0,0.08552061]
[1748826497166,0.62876257,105540.0,105530.0,0.05322061]
[1748826497378,0.62876257,105540.0,105530.0,0.05322072]
[1748826497582,0.62876257,105540.0,105530.0,0.06862077]
[1748826497800,0.62876257,105540.0,105530.0,0.08372067]
[1748826498007,0.62876257,105540.0,105530.0,0.08372062]
[1748826498416,0.54959738,105540.0,105530.0,0.29219167]
[1748826498801,0.54959738,105540.0,105530.0,0.28449658]
[1748826498802,0.34114588,105540.0,105530.0,0.28449658]
[1748826499007,0.36009487,105540.0,105530.0,0.31114147]
[1748826499221,0.36956986,105540.0,105530.0,0.31114068]
[1748826499336,0.36956986,105540.0,105530.0,0.30166534]
[1748826499536,0.38851975,105540.0,105530.0,0.31113413]
[1748826499974,0.38851975,105540.0,105530.0,0.31113427]
[1748826500171,0.57802136,105540.0,105530.0,0.28270735]
[1748826500371,0.568547,105540.0,105530.0,0.27502124]
[1748826500574,0.54959756,105540.0,105530.0,0.2921658]
[1748826500773,0.54959756,105540.0,105530.0,0.28389493]
[1748826501004,0.54959756,105540.0,105530.0,0.31111774]
[1748826501207,0.54959756,105540.0,105530.0,0.28449694]
[1748826501419,0.36009595,105540.0,105530.0,0.32059303]
[1748826501627,0.36009595,105540.0,105530.0,0.29397246]
[1748826502437,0.00114588,105540.0,105530.0,0.39870021]
[1748826502665,0.35062033,105540.0,105530.0,0.38982622]
[1748826502791,0.01062033,105540.0,105530.0,0.39869935]
[1748826502992,0.01062033,105540.0,105530.0,0.39869922]
[1748826503246,0.01062033,105540.0,105530.0,0.38982622]
[1748826503441,0.02009487,105540.0,105530.0,0.38982622]
[1748826503786,0.00114588,105540.0,105530.0,0.38982622]
[1748826504447,0.00114588,105540.0,105530.0,0.407572]
[1748826504644,0.00114588,105540.0,105530.0,0.38982622]
[1748826505689,0.00114588,105540.0,105530.0,0.39347113]
[1748826506302,0.00114588,105540.0,105530.0,0.39346813]
[1748826506513,0.00114588,105540.0,105530.0,0.42008578]
[1748826506925,0.00114588,105540.0,105530.0,0.42006935]
[1748826507142,0.00114588,105540.0,105530.0,0.39346813]
[1748826507543,0.00114588,105540.0,105530.0,0.70934932]
[1748826507753,0.00114588,105540.0,105530.0,0.69161519]
[1748826507971,0.00114588,105540.0,105530.0,0.70934373]
[1748826508199,0.00114588,105540.0,105530.0,0.70934095]
[1748826508402,0.00114588,105540.0,105530.0,0.42006095]
[1748826508605,0.00114588,105540.0,105530.0,0.40755085]
[1748826508817,0.00114588,105540.0,105530.0,0.41641316]
[1748826509016,0.00114588,105540.0,105530.0,0.40233036]
[1748826509214,0.00114588,105540.0,105530.0,0.41641291]
[1748826509415,0.00114588,105540.0,105530.0,0.39868845]
[1748826509659,0.00114588,105540.0,105530.0,0.41641291]
[1748826509791,0.00114588,105540.0,105530.0,0.39868845]
[1748826509992,0.00114588,105540.0,105530.0,0.41641293]
[1748826510245,0.00114588,105540.0,105530.0,0.41641294]
[1748826510410,0.00114588,105540.0,105530.0,0.40754882]
[1748826510615,0.00114588,105540.0,105530.0,0.38982622]
[1748826511019,0.00114588,105540.0,105530.0,0.39868755]
[1748826511217,0.00114588,105540.0,105530.0,0.39868754]
[1748826511424,0.00114588,105540.0,105530.0,0.40754878]
[1748826511638,0.00114588,105540.0,105530.0,0.39346596]
[1748826512312,0.00114588,105540.0,105530.0,0.41118752]
[1748826512635,0.00114588,105540.0,105530.0,0.41118728]
[1748826512830,0.00114588,105540.0,105530.0,0.39346596]
[1748826513352,0.00014588,105540.0,105530.0,0.39346596]
[1748826513549,0.00014588,105540.0,105530.0,0.41118686]
[1748826513748,0.00014588,105540.0,105530.0,0.39546596]
[1748826514358,0.00014588,105540.0,105530.0,0.4043264]
[1748826514566,0.00014588,105540.0,105530.0,0.39546596]
[1748826514770,0.00014588,105540.0,105530.0,0.41318684]
[1748826514968,0.00014588,105540.0,105530.0,0.39546596]
[1748826515435,0.00014588,105540.0,105530.0,0.41318618]
[1748826515751,0.00014588,105540.0,105530.0,0.39546596]
[1748826517629,0.00014588,105540.0,105530.0,0.40432588]
[1748826517829,0.00014588,105540.0,105530.0,0.41318577]
[1748826518032,0.00014588,105540.0,105530.0,0.39546596]
[1748826518617,0.00014588,105540.0,105530.0,0.42204704]
[1748826518822,0.00014588,105540.0,105530.0,0.41318661]
[1748826519253,0.00014588,105540.0,105530.0,0.39182622]
[1748826519453,0.00014588,105540.0,105530.0,0.39546277]
[1748826519807,0.00014588,105540.0,105530.0,0.42204358]
[1748826520026,0.00014588,105540.0,105530.0,0.71186676]
[1748826520227,0.00014588,105540.0,105530.0,1.02000702]
[1748826520435,0.00014588,105540.0,105530.0,1.02886612]
[1748826520657,0.00014588,105540.0,105530.0,1.34629034]
[1748826520861,0.00014588,105540.0,105530.0,1.37472934]
[1748826521081,0.00014588,105540.0,105530.0,1.37272934]
[1748826521279,0.00014588,105540.0,105530.0,1.37572934]
[1748826521692,0.00014588,105540.0,105530.0,1.39344661]
[1748826521896,0.00014588,105540.0,105530.0,1.39344655]
[1748826522093,0.00014588,105540.0,105530.0,1.37572934]
[1748826522509,0.00014588,105540.0,105530.0,1.37272934]
[1748826523026,0.00014588,105540.0,105530.0,1.37672934]
[1748826523970,0.00014588,105540.0,105530.0,1.39444682]
[1748826526191,0.00014588,105540.0,105530.0,1.4121643]
[1748826526322,0.00014588,105540.0,105530.0,1.39444682]
[1748826526740,0.00014588,105540.0,105530.0,1.41216624]
[1748826526932,0.00014588,105540.0,105530.0,1.39444682]
[1748826527139,0.00014588,105540.0,105530.0,1.4121661]
[1748826527718,0.00014588,105540.0,105530.0,1.41213876]
[1748826528355,0.00014588,105540.0,105530.0,1.39444682]
[1748826528550,0.00014588,105540.0,105530.0,1.41213038]
[1748826529027,0.00014588,105540.0,105530.0,1.42213038]
[1748826529228,0.00014588,105540.0,105530.0,1.40444682]
[1748826529471,0.00014588,105540.0,105530.0,1.42213027]
[1748826529672,0.00014588,105540.0,105530.0,1.42212937]
[1748826529794,0.00014588,105540.0,105530.0,1.42212439]
[1748826530643,0.00014588,105540.0,105530.0,1.40444682]
[1748826530844,0.00014588,105540.0,105530.0,1.42212804]
[1748826531279,0.00014588,105540.0,105530.0,1.40444682]
[1748826531430,0.07624494,105570.0,105560.0,0.21788446]
[1748826531634,0.07673102,105570.0,105560.0,0.62057998]
[1748826531832,0.07673102,105570.0,105560.0,0.60323218]
[1748826532750,0.07673102,105570.0,105560.0,0.62091331]
[1748826532962,0.1024026,105570.0,105560.0,0.60323218]
[1748826533160,0.1024026,105570.0,105560.0,0.62091336]
[1748826533365,0.09293102,105570.0,105560.0,0.60323218]
[1748826533564,0.00148608,105570.0,105560.0,0.60323218]
[1748826533926,0.01095766,105570.0,105560.0,0.60323218]
[1748826534129,0.00148608,105570.0,105560.0,0.60323218]
[1748826536041,0.00148608,105570.0,105560.0,0.31407218]
[1748826536244,0.00148608,105570.0,105560.0,0.60419218]
[1748826536658,0.01095766,105570.0,105560.0,0.60419218]
[1748826537088,0.01095766,105570.0,105560.0,0.62187273]
[1748826537319,0.00148608,105570.0,105560.0,0.60419218]
[1748826537490,0.00148608,105570.0,105560.0,0.62187273]
[1748826537721,0.00148608,105570.0,105560.0,0.62187693]
[1748826538358,0.00148608,105570.0,105560.0,0.62188878]
[1748826538557,0.00148608,105570.0,105560.0,0.60419218]
[1748826538760,0.00148608,105570.0,105560.0,0.62188878]
[1748826539344,0.00148608,105570.0,105560.0,0.60419218]
[1748826539522,0.00148608,105570.0,105560.0,0.62188879]
[1748826539882,0.00148608,105570.0,105560.0,0.63529218]
[1748826542001,0.00148608,105570.0,105560.0,0.65304063]
[1748826542226,0.00148608,105570.0,105560.0,0.6389259]
[1748826542435,0.00148608,105570.0,105560.0,0.65667404]
[1748826542640,0.00148608,105570.0,105560.0,0.6389259]
[1748826543036,0.00124919,105570.0,105560.0,0.6389259]
[1748826543756,0.00124919,105570.0,105560.0,0.6389278]
[1748826544635,0.00124919,105570.0,105560.0,0.65667593]
[1748826544841,0.00124919,105570.0,105560.0,0.6389278]
[1748826545042,0.00124919,105570.0,105560.0,0.95533179]
[1748826545245,0.00124919,105570.0,105560.0,0.96017559]
[1748826545446,0.00124919,105570.0,105560.0,0.95653997]
[1748826545960,0.00124919,105570.0,105560.0,0.95553997]
[1748826546365,0.00024919,105570.0,105560.0,0.97628629]
[1748826546578,0.00024919,105570.0,105560.0,0.95953997]
[1748826547853,0.00024919,105570.0,105560.0,0.97728615]
[1748826548055,0.00024919,105570.0,105560.0,0.95953997]
[1748826548502,0.00024919,105570.0,105560.0,0.97728615]
[1748826548709,0.00024919,105570.0,105560.0,0.95953997]
[1748826551029,0.00024919,105570.0,105560.0,0.97728629]
[1748826551450,0.00024919,105570.0,105560.0,0.97728627]
[1748826551861,0.00024919,105570.0,105560.0,0.97728624]
[1748826552066,0.00024919,105570.0,105560.0,0.95953997]
[1748826552484,0.00024919,105570.0,105560.0,1.04805997]
[1748826552686,0.00024919,105570.0,105560.0,1.06580624]
[1748826552879,0.00024919,105570.0,105560.0,1.04805997]
[1748826553429,0.00024919,105570.0,105560.0,1.06580624]
[1748826553643,0.00024919,105570.0,105560.0,1.04805997]
[1748826554250,0.00024919,105570.0,105560.0,1.06580622]
[1748826554466,0.00024919,105570.0,105560.0,1.04805997]
[1748826554689,0.00024919,105570.0,105560.0,1.38321617]
[1748826555060,0.00024919,105570.0,105560.0,0.80612218]
[1748826555261,0.00024919,105570.0,105560.0,1.41160617]
[1748826555468,0.00024919,105570.0,105560.0,1.42935054]
[1748826555664,0.00024919,105570.0,105560.0,1.40860617]
[1748826555897,0.00124919,105570.0,105560.0,1.41360617]
[1748826556090,0.00124919,105570.0,105560.0,1.4353508]
[1748826556351,0.00124919,105570.0,105560.0,1.41760617]